fUST/lending_fUST_20241009
["ID","MTS","AMOUNT","RATE_DAILY","PERIOD"]
[340062737,1728431429272,-500.0,0.00066619,120]
[340062738,1728431429298,-1212.6886682,0.0006662,41]
[340062739,1728431429324,-968.98,0.000668,90]
[340062749,1728431432656,-3048.51597774,0.0006686,120]
[340062750,1728431438865,-1000.0,0.0006,120]
[340062751,1728431438876,-1116.14531724,0.00066,120]
[340062752,1728431438890,-1210.00000001,0.00066,120]
[340062753,1728431440687,-69355.25592075,0.00066,120]
[340062754,1728431443850,-933.4792192,0.00066,120]
[340062765,1728431446700,-1022.12551638,0.00066,120]
[340062766,1728431446712,-953.012298,0.00066,120]
[340062767,1728431446724,-309.30294729,0.00066,120]
[340062768,1728431446736,-13021.18620478,0.00066,120]
[340062771,1728432627055,-158.898042,0.0004161,120]
[340062772,1728432627082,-158.898042,0.00047221,120]
[340062773,1728432627109,-175.0,0.00051349,120]
[340062774,1728432627137,-500.0,0.00052,120]
[340062775,1728432627163,-158.898042,0.00052831,120]
[340062776,1728432627189,-5000.0,0.0005439,120]
[340062777,1728432627214,-170.0,0.00056484,120]
[340062778,1728432627239,-200.0,0.000574,120]
[340062779,1728432627264,-158.898042,0.00058441,120]
[340062780,1728432627289,-151.0,0.00058499,120]
[340062781,1728432627314,-170.0,0.00058685,120]
[340062782,1728432627339,-5000.0,0.0005972,120]
[340062783,1728432627368,-200.0,0.0006,120]
[340062784,1728432627396,-2000.34955,0.0006,120]
[340062785,1728432627421,-4000.9001,0.0006,120]
[340062786,1728432627446,-2500.0,0.0006,120]
[340062787,1728432627470,-153.85928306,0.00060111,120]
[340062788,1728432627495,-170.0,0.00061619,120]
[340062789,1728432627522,-15615.9525669,0.00062,120]
[340062790,1728432627546,-151.0,0.00062328,120]
[340062791,1728432627570,-5000.0,0.00063908,120]
[340062792,1728432627594,-158.898042,0.00064052,120]
[340062793,1728432627619,-54347.43916262,0.0006421,120]
[340062794,1728432627655,-150.0,0.000646,120]
[340062825,1728432631733,-158.898042,0.00036,2]
[340062827,1728432631742,-151.03,0.000374,2]
[340062829,1728432631752,-288.4,0.00037416,2]
[340062831,1728432631762,-300.0,0.00038566,5]
[340062833,1728432631773,-5000.0,0.00038567,3]
[340062835,1728432631782,-151.0,0.00039356,15]
[340062837,1728432631792,-177.369208,0.00040022,2]
[340062839,1728432631802,-167.385969,0.00041107,2]
[340062841,1728432631812,-630.72713672,0.00042155,5]
[340063137,1728432640795,-4369.27286328,0.00042155,5]
[340063138,1728432640819,-177.369208,0.0004275,2]
[340063139,1728432640842,-151.0,0.00043185,31]
[340063140,1728432640869,-167.385969,0.00043249,2]
[340063141,1728432640900,-194.51,0.000435,2]
[340063142,1728432640923,-400.0,0.00044658,2]
[340063143,1728432640946,-177.369208,0.00045477,2]
[340063144,1728432640970,-170.0,0.00046849,90]
[340063145,1728432640994,-170.0,0.00047,90]
[340063146,1728432641018,-151.0,0.00047013,60]
[340063147,1728432641042,-166.645,0.00048904,85]
[340063148,1728432641066,-170.0,0.00048904,90]
[340063149,1728432641090,-400.0,0.00049517,2]
[340063150,1728432641114,-5000.0,0.0004961,10]
[340063151,1728432641139,-12164.3885259,0.0005,30]
[340063152,1728432641163,-190.53576608,0.00050742,28]
[340063153,1728432641187,-151.0,0.00050842,60]
[340063154,1728432641212,-190.53576602,0.00053646,28]
[340063155,1728432641242,-153.0,0.00053836,30]
[340063156,1728432641267,-153.0,0.00053836,30]
[340063157,1728432641291,-153.0,0.00053836,30]
[340063158,1728432641315,-153.0,0.00053836,30]
[340063159,1728432641340,-153.0,0.00053836,30]
[340063160,1728432641367,-400.0,0.00054376,2]
[340063161,1728432641392,-151.0,0.00054671,90]
[340063162,1728432641415,-583.54,0.000555,7]
[340063163,1728432641443,-190.53576602,0.00056549,28]
[340063164,1728432641467,-1401.0,0.00059,90]
[340063165,1728432641492,-400.0,0.00059236,2]
[340063166,1728432641516,-190.53576602,0.00059453,28]
[340063167,1728432641540,-3000.0,0.0006,60]
[340063168,1728432641566,-190.53576602,0.00062357,28]
[340063169,1728432641590,-400.0,0.00064095,2]
[340063170,1728432641614,-991.919556,0.00064313,2]
[340063171,1728432641953,3278.31,0.00059,120]
[340063240,1728432647206,1000.07083234,0.00065,120]
[340063241,1728432662063,400.0,0.00044658,2]
[340063242,1728432662438,400.0,0.00049517,2]
[340063243,1728432662670,400.0,0.00054376,2]
[340063244,1728432662966,400.0,0.00059236,2]
[340063245,1728432663200,400.0,0.00064095,2]
[340063246,1728432801330,1000.0,0.00037426,120]
[340063247,1728432801648,1000.0,0.00037426,120]
[340063248,1728432801954,1000.0,0.00037426,120]
[340063249,1728432802280,1000.0,0.00037426,120]
[340063250,1728432802633,1000.0,0.00037426,120]
[340063251,1728432802964,1000.0,0.00037426,120]
[340063252,1728432803271,1000.0,0.00037426,120]
[340063253,1728432803643,1000.0,0.00037426,120]
[340063254,1728432803958,662.52242191,0.00037426,120]
[340063255,1728433696872,21227.76340658,0.0002,2]
[340063256,1728433717653,36531.29095889,0.00020377,2]
[340063257,1728433717987,1859.30013107,0.0002,2]
[340063258,1728433719408,348.99655796,0.0002,2]
[340063259,1728433719881,157.46209556,0.0002,2]
[340063261,1728433721210,150.0,0.00023,5]
[340063266,1728433816552,-159.1998,0.00036,2]
[340063267,1728433816577,-500.0,0.0004,120]
[340063268,1728433816602,-150.0,0.000435,2]
[340063269,1728433816626,-159.1998,0.00043768,120]
[340063270,1728433816650,-166.666666,0.00044658,2]
[340063271,1728433816674,-300.0,0.00044658,2]
[340063272,1728433816698,-500.0,0.00045,120]
[340063273,1728433816722,-300.0,0.00049517,2]
[340063274,1728433816746,-300.0,0.00049999,15]
[340063275,1728433816770,-200.0,0.0005,120]
[340063276,1728433816802,-762.316,0.0005,120]
[340063277,1728433816826,-220.763564,0.00050692,2]
[340063278,1728433816851,-220.763564,0.00050831,2]
[340063279,1728433816876,-220.763564,0.0005097,2]
[340063280,1728433816900,-169.782767,0.00051085,2]
[340063281,1728433816929,-220.763564,0.00051109,2]
[340063282,1728433816954,-220.763564,0.00051248,2]
[340063283,1728433816979,-220.763564,0.00051387,2]
[340063284,1728433817004,-220.763564,0.00051526,2]
[340063285,1728433817028,-159.1998,0.00051536,120]
[340063286,1728433817055,-220.763564,0.00051665,2]
[340063287,1728433817080,-220.763564,0.00051804,2]
[340063288,1728433817105,-220.763564,0.00051943,2]
[340063289,1728433817129,-223.67657331,0.00052,120]
[340063290,1728433817155,-220.763564,0.00052083,2]
[340063291,1728433817180,-220.763564,0.00052222,2]
[340063292,1728433817208,-220.763564,0.00052361,2]
[340063293,1728433817233,-220.763564,0.000525,2]
[340063294,1728433817258,-220.763564,0.00052639,2]
[340063295,1728433817284,-220.763564,0.00052778,2]
[340063296,1728433817309,-220.763564,0.00052917,2]
[340063297,1728433817333,-166.666666,0.00053051,2]
[340063298,1728433817359,-220.763564,0.00053056,2]
[340063299,1728433817384,-220.763564,0.00053195,2]
[340063300,1728433817408,-220.763564,0.00053334,2]
[340063301,1728433817432,-170.956,0.0005358,100]
[340063302,1728433817457,-306.0,0.00053836,30]
[340063303,1728433817482,-298.6723617,0.00053973,30]
[340063304,1728433817505,-153.0,0.00053973,30]
[340063305,1728433817528,-153.0,0.00053973,30]
[340063306,1728433817553,-153.0,0.00053973,30]
[340063307,1728433817576,-153.0,0.00053973,30]
[340063308,1728433817601,-300.0,0.00054376,2]
[340063309,1728433817625,-200.0,0.00055,120]
[340063310,1728433817649,-445.48,0.000556,7]
[340063311,1728433817675,-160.0,0.00059074,3]
[340063312,1728433817702,-246.45086748,0.00059074,5]
[340063313,1728433817726,-300.0,0.00059236,2]
[340063314,1728433817752,-159.1998,0.00059304,120]
[340063315,1728433817775,-500.0,0.0006,120]
[340063316,1728433817802,-200.0,0.0006,120]
[340063317,1728433817826,-500.0,0.00060273,120]
[340063318,1728433817850,-500.0,0.00060273,120]
[340063319,1728433817875,-500.0,0.00060273,120]
[340063320,1728433817902,-500.0,0.00060273,120]
[340063321,1728433817931,-500.0,0.00060273,120]
[340063322,1728433817956,-500.0,0.00060273,120]
[340063323,1728433817981,-500.0,0.00060273,120]
[340063324,1728433818008,-500.0,0.00060273,120]
[340063325,1728433818035,-500.0,0.00060273,120]
[340063326,1728433818060,-509.17666669,0.00060273,120]
[340063327,1728433818086,-500.0,0.00060273,2]
[340063328,1728433818111,-500.0,0.00060273,2]
[340063329,1728433818137,-500.0,0.00060273,120]
[340063330,1728433818161,-500.0,0.00060273,120]
[340063331,1728433818186,-500.0,0.00060273,120]
[340063332,1728433818211,-500.0,0.00060273,120]
[340063333,1728433818236,-500.0,0.00060273,120]
[340063334,1728433818262,-500.0,0.00060273,120]
[340063335,1728433818286,-500.0,0.00060273,120]
[340063336,1728433818310,-532.26294914,0.00060273,120]
[340063337,1728433818335,-500.0,0.00060273,120]
[340063338,1728433818368,-500.0,0.00060273,120]
[340063339,1728433818392,-500.0,0.00060273,120]
[340063340,1728433818419,-500.0,0.00060273,120]
[340063341,1728433818445,-500.0,0.00060273,120]
[340063342,1728433818471,-500.0,0.00060273,120]
[340063343,1728433818495,-500.0,0.00060273,120]
[340063344,1728433818523,-500.0,0.00060273,120]
[340063345,1728433818547,-500.0,0.00060273,120]
[340063346,1728433818571,-500.0,0.00060273,120]
[340063347,1728433818596,-500.0,0.00060273,120]
[340063348,1728433818621,-500.0,0.00060273,120]
[340063349,1728433818646,-500.0,0.00060273,120]
[340063350,1728433818782,-500.0,0.00060273,120]
[340063351,1728433818816,-500.0,0.00060273,120]
[340063352,1728433818846,-500.0,0.00060273,120]
[340063353,1728433818872,-510.32571693,0.00060273,120]
[340063354,1728433818898,-500.0,0.00060273,120]
[340063355,1728433818925,-500.0,0.00060273,120]
[340063356,1728433818950,-500.0,0.00060273,120]
[340063357,1728433818975,-500.0,0.00060273,120]
[340063358,1728433819000,-500.0,0.00060273,120]
[340063359,1728433819025,-650.41,0.00060273,2]
[340063360,1728433819051,-612.1813689,0.00060569,28]
[340063361,1728433819077,-521.19,0.00060669,120]
[340063362,1728433819103,-500.0,0.00060669,120]
[340063363,1728433819129,-500.0,0.00060669,120]
[340063364,1728433819154,-500.0,0.00060669,120]
[340063365,1728433819180,-550.89755036,0.00060669,120]
[340063366,1728433819206,-500.0,0.00060669,120]
[340063367,1728433819232,-500.0,0.00060669,120]
[340063368,1728433819258,-506.67882344,0.00060669,120]
[340063369,1728433819285,-8332.43,0.00060669,18]
[340063370,1728433819309,-5000.0,0.0006067,120]
[340063371,1728433819336,-166.666666,0.00061445,2]
[340063372,1728433819363,-612.18136884,0.00061976,28]
[340063373,1728433819388,-505.29128355,0.00061999,120]
[340063374,1728433819412,-500.0,0.00061999,2]
[340063375,1728433819438,-500.0,0.00061999,120]
[340063376,1728433819463,-500.0,0.00061999,120]
[340063377,1728433819489,-500.0,0.00061999,120]
[340063378,1728433819513,-501.82536825,0.00061999,120]
[340063379,1728433819539,-506.29386753,0.00061999,120]
[340063380,1728433819564,-500.0,0.00061999,120]
[340063381,1728433819589,-522.92604045,0.00061999,120]
[340063382,1728433819613,-500.0,0.00061999,120]
[340063383,1728433819637,-332.643,0.000623,120]
[340063384,1728433819661,-153.85928307,0.00062386,120]
[340063385,1728433819686,-500.0,0.00063278,120]
[340063386,1728433819711,-215.96927807,0.00063278,120]
[340063387,1728433819734,-500.0,0.00063278,120]
[340063388,1728433819759,-500.0,0.00063278,120]
[340063389,1728433819782,-593.01523136,0.00063278,120]
[340063390,1728433819812,-540.99770622,0.00063278,120]
[340063391,1728433819844,-500.0,0.00063278,120]
[340063392,1728433819870,-500.0,0.00063278,120]
[340063393,1728433819895,-8332.43,0.00063278,18]
[340063394,1728433819923,-8332.43,0.00063278,18]
[340063395,1728433819947,-500.0,0.00063278,120]
[340063396,1728433819972,-650.41,0.00063278,2]
[340063397,1728433819997,-650.41,0.00063278,2]
[340063398,1728433820021,-650.41,0.00063278,2]
[340063399,1728433820050,-500.0,0.00063279,120]
[340063400,1728433820079,-1388.87,0.00063279,120]
[340063401,1728433820103,-500.0,0.00063279,120]
[340063402,1728433820128,-500.0,0.00063279,120]
[340063403,1728433820151,-1189.86,0.00063279,120]
[340063404,1728433820175,-4774.38,0.00063279,21]
[340063405,1728433820199,-1717.19,0.00063279,120]
[340063406,1728433820222,-512.85976398,0.00063279,120]
[340063407,1728433820247,-824.27,0.00063279,120]
[340063408,1728433820272,-500.0,0.00063279,120]
[340063409,1728433820307,-502.43338183,0.00063279,120]
[340063410,1728433820332,-500.0,0.00063279,120]
[340063411,1728433820356,-500.0,0.00063279,120]
[340063412,1728433820380,-507.13568959,0.00063279,120]
[340063413,1728433820405,-500.0,0.00063279,120]
[340063414,1728433820429,-500.0,0.00063279,120]
[340063415,1728433820452,-500.0,0.00063279,120]
[340063416,1728433820481,-500.0,0.00063279,120]
[340063417,1728433820510,-500.0,0.00063279,120]
[340063418,1728433820535,-527.27,0.00063279,120]
[340063419,1728433820563,-500.0,0.00063279,120]
[340063420,1728433820587,-500.0,0.00063279,120]
[340063421,1728433820611,-500.0,0.00063279,120]
[340063422,1728433820636,-500.0,0.00063279,120]
[340063423,1728433820661,-500.0,0.00063279,120]
[340063424,1728433820686,-541.26,0.00063279,120]
[340063425,1728433820711,-500.0,0.00063279,120]
[340063426,1728433820735,-500.0,0.00063279,120]
[340063427,1728433820763,-499.17967442,0.00063279,120]
[340063428,1728433820791,-500.0,0.00063279,120]
[340063429,1728433820815,-500.0,0.00063279,120]
[340063430,1728433820842,-500.0,0.00063279,120]
[340063431,1728433820868,-248.92995877,0.00063279,120]
[340063432,1728433820892,-8332.43,0.00063279,18]
[340063433,1728433820918,-10624.28559029,0.0006328,120]
[340063434,1728433820947,-612.18136884,0.00063384,28]
[340063435,1728433820972,-301.4655481,0.00064,120]
[340063436,1728433821127,500.0,0.00063279,120]
[340063437,1728433821924,500.0,0.00060273,120]
[340063438,1728433822224,500.0,0.00060669,120]
[340063439,1728433822524,500.0,0.00063278,120]
[340063440,1728433822881,500.0,0.00063278,120]
[340063441,1728433823215,500.0,0.00063278,120]
[340063442,1728433823597,508.09989567,0.00060273,120]
[340063443,1728433825968,1000.0,0.00060273,120]
[340063444,1728433826303,1000.0,0.00060273,120]
[340063445,1728433826488,4575.45,0.00060669,21]
[340063446,1728433826619,1000.0,0.00061999,120]
[340063447,1728433826796,4575.45,0.00063278,21]
[340063448,1728433827111,4575.45,0.00063278,21]
[340063449,1728433827427,4575.45,0.00063279,21]
[340063450,1728433828236,62.04857822,0.00060273,120]
[340063479,1728433831849,-437.95142178,0.00060273,120]
[340063481,1728433831859,-390.25683481,0.00060669,120]
[340063744,1728433838195,-500.0,0.00060273,120]
[340063745,1728433838207,-500.0,0.00060273,120]
[340063746,1728433838217,-500.0,0.00060273,120]
[340063747,1728433838227,-111.84635035,0.00060669,120]
[340063748,1728433838237,-1140.28,0.00060669,120]
[340063749,1728433838248,-500.0,0.00060669,120]
[340063750,1728433838259,-500.0,0.00060669,120]
[340063751,1728433838268,-1080.54022239,0.0006327,120]
[340063760,1728433840247,-1645.64,0.00060669,120]
[340063761,1728433840257,-103.90314394,0.0006327,120]
[340063772,1728433842993,-500.0,0.00060273,120]
[340063774,1728433843008,-500.0,0.00060273,120]
[340063776,1728433843019,-415.15189964,0.00061999,120]
[340063777,1728433843030,-1698.62054773,0.0006327,120]
[340063784,1728433846014,-500.0,0.00060273,120]
[340063785,1728433846025,-502.64432937,0.00060669,120]
[340063786,1728433846036,-3723.59609848,0.0006327,120]
[340063787,1728433846050,-250.0,0.0006327,120]
[340063788,1728434264030,487.0719992,0.0003,5]
[340063789,1728434417184,250.0,0.0003,5]
[340063790,1728434498238,250.0,0.000328,5]
[340063797,1728435035113,-159.1998,0.00036,2]
[340063798,1728435035125,-150.0,0.000428,2]
[340063799,1728435035136,-400.0,0.00044658,2]
[340063800,1728435035146,-300.0,0.00045,7]
[340063801,1728435035156,-159.1998,0.00047221,120]
[340063802,1728435035166,-400.0,0.00049517,2]
[340063803,1728435035178,-400.0,0.00054376,2]
[340063804,1728435035189,-266.84,0.000556,7]
[340063805,1728435035199,-250.08730177,0.00058,120]
[340063806,1728435035209,-159.1998,0.00058441,120]
[340063807,1728435035218,-170.95759063,0.00059236,118]
[340063808,1728435035235,-400.0,0.00059236,2]
[340063809,1728435035246,-5053.73,0.000593,30]
[340063810,1728435035257,-382.61335556,0.00059873,28]
[340063811,1728435035267,-6116.6864257,0.0005996,9]
[340063812,1728435035276,-501.38075388,0.00059973,15]
[340063813,1728435035286,-500.0,0.00059973,15]
[340063814,1728435035296,-500.0,0.00059973,15]
[340063815,1728435035306,-500.0,0.00059973,15]
[340063816,1728435035316,-9786.69828112,0.0005999,9]
[340063817,1728435035326,-500.0,0.00059999,120]
[340063818,1728435035335,-284.75141262,0.00059999,120]
[340063819,1728435035345,-305.8371928,0.00059999,120]
[340063820,1728435035357,-500.0,0.00059999,120]
[340063821,1728435035367,-574.75604801,0.00059999,120]
[340063822,1728435035376,-2445.1744709,0.0006,63]
[340063823,1728435035388,-1900.9847661,0.0006,63]
[340063905,1728435043303,-315.60178187,0.0006,63]
[340063908,1728435327444,25290.707147,0.00037444,30]
[340063915,1728436232357,-2216.58654797,0.000359,2]
[340063916,1728436232366,-159.828303,0.00036,2]
[340063917,1728436232377,-400.0,0.00037457,2]
[340063918,1728436232387,-1834.66554549,0.00037458,2]
[340063919,1728436232397,-300.50993715,0.00037458,2]
[340063920,1728436232407,-560.0,0.00040059,5]
[340063921,1728436232416,-150.0,0.000428,2]
[340063922,1728436232425,-783.0,0.00042843,5]
[340063923,1728436232434,-169.782767,0.00043667,2]
[340063924,1728436232444,-160.0,0.00044658,2]
[340063925,1728436232454,-320.0,0.00044658,2]
[340063926,1728436232464,-250.0000006,0.00045727,2]
[340063927,1728436232478,-387.0,0.00045821,5]
[340063928,1728436232494,-320.0,0.00049517,2]
[340063929,1728436232504,-159.828303,0.00050427,120]
[340063930,1728436232514,-320.0,0.00054376,2]
[340063931,1728436232523,-160.0,0.00054916,2]
[340063932,1728436232533,-236.6,0.000559,7]
[340063933,1728436232542,-500.0,0.00058,7]
[340063934,1728436232552,-2000.0,0.000589,120]
[340063935,1728436232562,-2000.0,0.000589,120]
[340063936,1728436232571,-542.01,0.00059199,2]
[340063937,1728436232581,-2000.0,0.000592,120]
[340063938,1728436232591,-2000.0,0.000592,120]
[340063939,1728436232601,-2000.0,0.000592,120]
[340063940,1728436232612,-2000.0,0.000592,120]
[340063941,1728436232622,-2000.0,0.000592,120]
[340063942,1728436232631,-50645.14045577,0.0005923,120]
[340063948,1728436238719,-22173.20860446,0.0005923,120]
[340063972,1728436243480,-63197.81840872,0.0005923,120]
[340064013,1728436246382,-6607.44157632,0.0005923,120]
[340064027,1728437118827,-187.904319,0.00033371,2]
[340064028,1728437165312,-187.904319,0.00033462,2]
[340064029,1728437165340,-187.904319,0.00033554,2]
[340064030,1728437165367,-187.904319,0.00033645,2]
[340064031,1728437185258,169.782767,0.00033013,2]
[340064032,1728437309480,2820.599957,0.000134,2]
[340064033,1728437309508,296.90255519,0.000134,2]
[340064066,1728437432767,-811.80220295,0.00033637,2]
[340064067,1728437432776,-187.904319,0.00033737,2]
[340064068,1728437432785,-138.82636706,0.00033828,2]
[340064069,1728437432797,-49.07795194,0.00033828,2]
[340064070,1728437432806,-187.904319,0.0003392,2]
[340064071,1728437432816,-187.904319,0.00034011,2]
[340064072,1728437432825,-187.904319,0.00034103,2]
[340064073,1728437432838,-187.904319,0.00034194,2]
[340064074,1728437432848,-187.904319,0.00034286,2]
[340064075,1728437432857,-187.904319,0.00034378,2]
[340064076,1728437432866,-187.904319,0.00034469,2]
[340064077,1728437432876,-187.904319,0.00034561,2]
[340064078,1728437432886,-187.904319,0.00034652,2]
[340064079,1728437432895,-187.904319,0.00034744,2]
[340064080,1728437432904,-187.904319,0.00034835,2]
[340064081,1728437432914,-187.904319,0.00034927,2]
[340064082,1728437432923,-1307.63371659,0.00035,2]
[340064083,1728437432938,-155.23628341,0.00035,2]
[340064084,1728437432949,-187.904319,0.00035018,2]
[340064085,1728437432959,-187.904319,0.0003511,2]
[340064086,1728437432968,-15.98668959,0.00035999,2]
[340064087,1728437433057,-384.01331041,0.00035999,2]
[340064088,1728437433068,-132.11945669,0.00036,2]
[340064089,1728437433080,-27.70884631,0.00036,2]
[340064090,1728437433089,-400.0,0.00036,2]
[340064091,1728437433100,-1078.78774442,0.00036705,2]
[340064159,1728437444511,-159.828303,0.00036,2]
[340064160,1728437444521,-5773.14667765,0.00036705,2]
[340064164,1728437446660,-10600.84284626,0.00036705,2]
[340064165,1728437446672,-6019.88564147,0.00036705,2]
[340064166,1728437446684,-3000.0,0.00036768,2]
[340064167,1728437446694,-567.73426251,0.00036768,60]
[340064168,1728437446704,-4470.15131625,0.00036888,2]
[340064169,1728437446715,-320.0,0.0003856,5]
[340064170,1728437446726,-320.0,0.00039599,30]
[340064171,1728437446738,-150.0,0.000428,2]
[340064172,1728437446749,-160.0,0.00044658,2]
[340064173,1728437446759,-272.0,0.00044658,2]
[340064174,1728437446769,-266.17925393,0.00048722,2]
[340064176,1728437635022,150.0,0.00037472,120]
[340064177,1728438007441,473.83344115,0.00028724,2]
[340064178,1728438008542,465.44167206,0.0003016,2]
[340064179,1728438009671,465.0220836,0.00031668,2]
[340064180,1728438212418,152.25045934,0.00026578,2]
[340064182,1728438579805,166.666666,0.00032659,2]
[340064343,1728438640309,-465.00110418,0.00033251,2]
[340064345,1728438640319,-1014.98892122,0.00033316,2]
[340064519,1728438643164,-214.70960948,0.00033316,2]
[340064520,1728438643178,-250.0,0.00033509,2]
[340064521,1728438643189,-166.666666,0.0003355,2]
[340064522,1728438643199,-9.55854262,0.00033601,2]
[340064532,1728438646271,-1000.0,0.000329,24]
[340064533,1728438646283,-1000.0,0.000334,24]
[340064534,1728438646294,-240.44145738,0.00033601,2]
[340064535,1728438646305,-250.0,0.00033693,2]
[340064536,1728438646316,-661.226,0.00033718,30]
[340064537,1728438646327,-250.0,0.00033784,2]
[340064538,1728438646338,-250.0,0.00033876,2]
[340064539,1728438646349,-400.0,0.00033898,2]
[340064540,1728438646361,-400.0,0.00033898,2]
[340064541,1728438646372,-1000.0,0.000339,24]
[340064542,1728438646382,-250.0,0.00033968,2]
[340064543,1728438646393,-250.0,0.0003406,2]
[340064544,1728438646406,-250.0,0.00034152,2]
[340064545,1728438646417,-250.0,0.00034244,2]
[340064546,1728438646427,-250.0,0.00034336,2]
[340064547,1728438646439,-325.9,0.00034361,6]
[340064548,1728438646449,-1000.0,0.000344,24]
[340064549,1728438646460,-250.0,0.00034428,2]
[340064550,1728438646471,-166.666666,0.0003444,2]
[340064551,1728438646482,-204.201741,0.00034498,30]
[340064552,1728438646493,-250.0,0.0003452,2]
[340064553,1728438646504,-250.0,0.00034611,2]
[340064554,1728438646515,-250.0,0.00034703,2]
[340064555,1728438646529,-250.0,0.00034795,2]
[340064556,1728438646539,-250.0,0.00034887,2]
[340064557,1728438646549,-1000.0,0.000349,24]
[340064558,1728438646560,-250.0,0.00034979,2]
[340064559,1728438646572,-250.0,0.00035071,2]
[340064560,1728438646582,-250.0,0.00035163,2]
[340064561,1728438646593,-250.0,0.00035255,2]
[340064562,1728438646603,-166.666666,0.00035331,2]
[340064563,1728438646616,-566.03233656,0.000354,24]
[340064564,1728438713707,298.7,0.00030843,4]
[340064565,1728438721686,204.2017425,0.00031962,30]
[340064566,1728438764674,503.37926579,0.00030843,2]
[340064567,1728438780469,157.374665,0.00032674,2]
[340064568,1728438780700,157.374665,0.00032796,2]
[340064569,1728438919564,2000.0,0.00037359,120]
[340064570,1728438924270,498.11673873,0.00032796,30]
[340064571,1728438927193,2000.0,0.00037359,120]
[340064572,1728439012471,273.8,0.00030844,4]
[340064573,1728439076359,166.666666,0.00031068,2]
[340064574,1728439076567,166.666666,0.00031915,2]
[340064575,1728439076801,166.666666,0.00032762,2]
[340064576,1728439135656,204.720578,0.00031675,2]
[340064577,1728439135931,204.720578,0.00031833,2]
[340064578,1728439163322,184.6468395,0.00031683,2]
[340064579,1728439222702,332.07782582,0.00031683,30]
[340064580,1728439244242,571.369854,0.00031736,2]
[340064581,1728439295770,24900.0,0.00031661,2]
[340064582,1728439312661,251.0,0.00030845,4]
[340064584,1728439567586,190.6,0.0003,2]
[340064585,1728439613094,230.1,0.00030867,4]
[340064586,1728439683321,-169.782767,0.00033175,2]
[340064587,1728439683349,-157.374665,0.00033403,2]
[340064588,1728439683377,-194.82,0.00033441,35]
[340064589,1728439683402,-500.0,0.00033473,5]
[340064590,1728439683429,-211.43688276,0.00033473,5]
[340064591,1728439683458,-500.0,0.00033473,5]
[340064592,1728439683486,-157.374665,0.00033549,2]
[340064593,1728439683517,-166.666666,0.00033609,2]
[340064594,1728439683544,-157.374665,0.00033694,2]
[340064595,1728439683569,-163.25317926,0.00033739,2]
[340064596,1728439683597,-121.91650998,0.00033839,2]
[340064597,1728439824173,221.38521722,0.00030867,30]
[340064622,1728439832051,-35.45815502,0.00033839,2]
[340064624,1728439832060,-157.374665,0.00033984,2]
[340064626,1728439832070,-157.374665,0.00034129,2]
[340064629,1728439832083,-157.374665,0.00034274,2]
[340064631,1728439832093,-230.1,0.0003433,6]
[340064633,1728439832104,-8.92370566,0.00034419,2]
[340064635,1728439832118,-148.45095934,0.00034419,2]